Workbook

Sheet Dashboard
B2: 50 Most Prominent Summits on Earth - Bluffing Tableau Actions and Tooltips with Microsoft Excel (camera version) | J2: www.clearlyandsimply.com
B19: No. | C19: =Data!B4 -> Summit Name | D19: =Data!C4 -> Country | E19: =Data!H4 -> First Ascent by | F19: =Data!I4 -> Year | G19: =Data!F4 -> Elevation in m | I19: =Data!G4 -> Prominence in m
B20: =Calculations!E70 -> 27 | C20: =Calculations!G70 -> Yu Shan | D20: =Calculations!H70 -> Taiwan | E20: =Calculations!K70 -> K. Stopel | F20: =Calculations!L70 -> 1898 | G20: =Calculations!I70 -> 3952 | I20: =Calculations!J70 -> 3952 | K20: =Calculations!$F70 -> 27
B21: =Calculations!E71 -> 28 | C21: =Calculations!G71 -> Ngaliema (Mt. Stanley) | D21: =Calculations!H71 -> Congo/Uganda | E21: =Calculations!K71 -> Duke of the Abruzzi et al. | F21: =Calculations!L71 -> 1906 | G21: =Calculations!I71 -> 5109 | I21: =Calculations!J71 -> 3951 | K21: =Calculations!$F71 -> 28
B22: =Calculations!E72 -> 29 | C22: =Calculations!G72 -> Kangchenjunga | D22: =Calculations!H72 -> India/Nepal | E22: =Calculations!K72 -> George Band, Joe Brown | F22: =Calculations!L72 -> 1955 | G22: =Calculations!I72 -> 8586 | I22: =Calculations!J72 -> 3922 | K22: =Calculations!$F72 -> 29
B23: =Calculations!E73 -> 30 | C23: =Calculations!G73 -> Tirich Mir | D23: =Calculations!H73 -> Pakistan | E23: =Calculations!K73 -> Arne Næss, P. Kvernberg, H. Berg, Tony Streather | F23: =Calculations!L73 -> 1950 | G23: =Calculations!I73 -> 7708 | I23: =Calculations!J73 -> 3910 | K23: =Calculations!$F73 -> 30
B24: =Calculations!E74 -> 31 | C24: =Calculations!G74 -> Mt. Cameroon | D24: =Calculations!H74 -> Cameroon | E24: =Calculations!K74 -> Richard Francis Burton, Gustav Mann | F24: =Calculations!L74 -> 1861 | G24: =Calculations!I74 -> 4040 | I24: =Calculations!J74 -> 3901 | K24: =Calculations!$F74 -> 31
B25: =Calculations!E75 -> 32 | C25: =Calculations!G75 -> Mt. Kenya | D25: =Calculations!H75 -> Kenya | E25: =Calculations!K75 -> Halford Mackinder, Cesar Ollier, Joseph Brocherel | F25: =Calculations!L75 -> 1899 | G25: =Calculations!I75 -> 5199 | I25: =Calculations!J75 -> 3825 | K25: =Calculations!$F75 -> 32
B26: =Calculations!E76 -> 33 | C26: =Calculations!G76 -> Gunung Kerinci | D26: =Calculations!H76 -> Indonesia | E26: =Calculations!K76 -> Hasselt, Veth | F26: =Calculations!L76 -> 1877 | G26: =Calculations!I76 -> 3805 | I26: =Calculations!J76 -> 3805 | K26: =Calculations!$F76 -> 33
B27: =Calculations!E77 -> 34 | C27: =Calculations!G77 -> Mt. Erebus | D27: =Calculations!H77 -> Antarctica | E27: =Calculations!K77 -> Tannatt David,Douglas Mawson | F27: =Calculations!L77 -> 1908 | G27: =Calculations!I77 -> 3794 | I27: =Calculations!J77 -> 3794 | K27: =Calculations!$F77 -> 34
B28: =Calculations!E78 -> 35 | C28: =Calculations!G78 -> Fuji San | D28: =Calculations!H78 -> Japan | E28: =Calculations!K78 -> Unknown monk | F28: =Calculations!L78 -> 663 | G28: =Calculations!I78 -> 3776 | I28: =Calculations!J78 -> 3776 | K28: =Calculations!$F78 -> 35
B29: =Calculations!E79 -> 36 | C29: =Calculations!G79 -> Jebel Toubkal | D29: =Calculations!H79 -> Morocco | E29: =Calculations!K79 -> Marquis de Segonzac, V. Berger, H. Dolbeau | F29: =Calculations!L79 -> 1923 | G29: =Calculations!I79 -> 4167 | I29: =Calculations!J79 -> 3755 | K29: =Calculations!$F79 -> 37

Sheet Data
B2: Data - 50 selected summits
B4: Summit Name | C4: Country | D4: Latitude | E4: Longitude | F4: Elevation in m | G4: Prominence in m | H4: First Ascent by | I4: Year | J4: Aerial link
B5: Mt. Everest | C5: Nepal/Tibet | D5: 27.986519 | E5: 86.919708 | F5: 8848 | G5: 8848 | H5: Edmund Hillary, Tenzing Norgay | I5: 1953 | J5: http://maps.google.com/maps?ll=27.986519,86.919708&spn=.429142,.595562&t=k&hl=en&output=embed
B6: Aconcagua | C6: Argentina | D6: -32.656286 | E6: -70.015783 | F6: 6962 | G6: 6962 | H6: Matthias Zurbriggen | I6: 1897 | J6: http://maps.google.com/maps?ll=-32.656286,-70.015783&spn=.204576,.297781&t=k&hl=en&output=embed
B7: Mt. McKinley (Denali) | C7: US | D7: 63.098487 | E7: -151.001587 | F7: 6194 | G7: 6138 | H7: Hudson Stuck | I7: 1913 | J7: http://maps.google.com/maps?ll=63.098487,-151.001587&spn=.219883,.595562&t=k&hl=en&output=embed
B8: Kilimanjaro | C8: Tanzania | D8: -3.058239 | E8: 37.346649 | F8: 5895 | G8: 5885 | H8: Hans Meyer, Ludwig Purtscheller, Yohani Kinyala Lauwo | I8: 1889 | J8: http://maps.google.com/maps?ll=-3.058239,37.346649&spn=.121320,.148890&t=k&hl=en&output=embed
B9: Cristobal Colon | C9: Colombia | D9: 10.829765 | E9: -73.701096 | F9: 5700 | G9: 5509 | H9: - | I9: - | J9: http://maps.google.com/maps?ll=10.829765,-73.701096&spn=.238659,.297781&t=k&hl=en&output=embed
B10: Mt. Logan | C10: Canada | D10: 60.633469 | E10: -140.439606 | F10: 5959 | G10: 5250 | H10: Albert H. MacCarthy, W. W. Foster | I10: 1925 | J10: http://maps.google.com/maps?ll=60.633469,-140.439606&spn=.119159,.297781&t=k&hl=en&output=embed
B11: Pico de Orizaba (Citlaltepetl) | C11: Mexico | D11: 19.03 | E11: -97.2666 | F11: 5636 | G11: 4922 | H11: F. Maynard, G. Reynolds | I11: 1848 | J11: http://maps.google.com/maps?ll=19.030000,-97.266600&spn=.229706,.297781&t=k&hl=en&output=embed
B12: Vinson Massif | C12: Antarctica | D12: -78.51 | E12: -85.6 | F12: 4892 | G12: 4892 | H12: Nicholas Clinch | I12: 1966 | J12: http://maps.google.com/maps?ll=-78.510000,-85.600000&spn=6.274193,38.115967&t=k&hl=en&output=embed
B13: Puncak Jaya | C13: Indonesia | D13: -4.0666 | E13: 137.18333 | F13: 4884 | G13: 4884 | H13: Heinrich Harrer et al. | I13: 1962 | J13: http://maps.google.com/maps?ll=-4.066600,137.183330&spn=.242375,.297781&t=k&hl=en&output=embed
B14: Gora Elbrus | C14: Russia | D14: 43.35 | E14: 42.4333 | F14: 5642 | G14: 4741 | H14: Florence Crauford Grove, Frederick Gardner, Horace Walker, Peter Knubel | I14: 1874 | J14: http://maps.google.com/maps?ll=43.350000,42.433300&spn=.353386,.595562&t=k&hl=en&output=embed
B15: Mont Blanc | C15: France/Italy | D15: 45.833 | E15: 6.866 | F15: 4809 | G15: 4696 | H15: Jacques Balmat, Michel-Gabriel Paccard | I15: 1786 | J15: http://maps.google.com/maps?ll=45.833000,6.866000&spn=.169301,.297781&t=k&hl=en&output=embed
B16: Damavand | C16: Iran | D16: 35.954387 | E16: 52.111244 | F16: 5610 | G16: 4667 | H16: Abu Dolaf Kazraji | I16: 905 | J16: http://maps.google.com/maps?ll=35.954387,52.111244&spn=.196694,.297781&t=k&hl=en&output=embed
B17: Klyuchevskaya Volcano | C17: Russia | D17: 56.060153 | E17: 160.63179 | F17: 4750 | G17: 4649 | H17: Daniel Gauss et al. | I17: 1788 | J17: http://maps.google.com/maps?ll=56.060153,160.631790&spn=.271330,.595562&t=k&hl=en&output=embed
B18: Nanga Parbat | C18: Pakistan | D18: 35.2333 | E18: 74.6 | F18: 8125 | G18: 4608 | H18: Hermann Buhl | I18: 1953 | J18: http://maps.google.com/maps?ll=35.233300,74.600000&spn=.396945,.595562&t=k&hl=en&output=embed
B19: Mauna Kea | C19: US | D19: 19.824204 | E19: -155.467529 | F19: 4205 | G19: 4205 | H19: - | I19: - | J19: http://maps.google.com/maps?ll=19.824204,-155.467529&spn=.228587,.297781&t=k&hl=en&output=embed
B20: Jengish Chokusu (ex. Pik Pobedy) | C20: Kyrgyzstan/China | D20: 42.0333 | E20: 80.116666 | F20: 7439 | G20: 4148 | H20: Witali Abalakow et al. | I20: 1956 | J20: http://maps.google.com/maps?ll=42.033300,80.116666&spn=.360958,.595562&t=k&hl=en&output=embed
B21: Chimborazo | C21: Ecuador | D21: -1.467544 | E21: -78.81609 | F21: 6267 | G21: 4122 | H21: Edward Whymper | I21: 1880 | J21: http://maps.google.com/maps?ll=-1.467544,-78.816090&spn=.242907,.297781&t=k&hl=en&output=embed
B22: Bogda Shan | C22: China | D22: 43.8 | E22: 88.333 | F22: 5445 | G22: 4122 | H22: - | I22: - | J22: http://maps.google.com/maps?ll=43.800000,88.333000&spn=.175378,.297781&t=k&hl=en&output=embed
B23: Namcha Barwa | C23: China | D23: 29.6333 | E23: 95.05 | F23: 7782 | G23: 4106 | H23: Bianba Zaxi et al. | I23: 1992 | J23: http://maps.google.com/maps?ll=29.633300,95.050000&spn=.211205,.297781&t=k&hl=en&output=embed
B24: Kinabalu | C24: Malaysia | D24: 6.0666 | E24: 116.56666 | F24: 4095 | G24: 4095 | H24: H. Low, S. St. John | I24: 1858 | J24: http://maps.google.com/maps?ll=6.0666,116.56666&spn=.211205,.297781&t=k&hl=en&output=embed
B25: Mt. Rainier | C25: US | D25: 46.85 | E25: -121.7666 | F25: 4393 | G25: 4023 | H25: Hazard Stevens, P.B. Van Trump | I25: 1870 | J25: http://maps.google.com/maps?ll=46.850000,-121.766600&spn=.166181,.297781&t=k&hl=en&output=embed
B26: K2 | C26: Pakistan/China | D26: 35.89211 | E26: 76.514626 | F26: 8611 | G26: 4017 | H26: Achille Compagnoni, Lino Lacedelli | I26: 1954 | J26: http://maps.google.com/maps?ll=35.892110,76.514626&spn=.196849,.297781&t=k&hl=en&output=embed
B27: Ras Dejen | C27: Ethiopia | D27: 13.2333 | E27: 38.3666 | F27: 4533 | G27: 3980 | H27: Ferret, Galinier | I27: 1841 | J27: http://maps.google.com/maps?ll=13.233300,38.366600&spn=.236534,.297781&t=k&hl=en&output=embed
B28: Volcan Tajumulco | C28: Guatemala | D28: 15.041954 | E28: -91.903725 | F28: 4220 | G28: 3980 | H28: - | I28: - | J28: http://maps.google.com/maps?ll=15.041954,-91.903725&spn=.234661,.297781&t=k&hl=en&output=embed
B29: Pico Bolivar | C29: Venezuela | D29: 8.539602 | E29: -71.047554 | F29: 4981 | G29: 3957 | H29: Enrique Bourgoin, H. Márquez Molina, Domingo Peña | I29: 1935 | J29: http://maps.google.com/maps?ll=8.539602,-71.047554&spn=.240293,.297781&t=k&hl=en&output=embed
B30: Mt. Fairweather | C30: US/Canada | D30: 58.90766 | E30: -137.519646 | F30: 4671 | G30: 3955 | H30: Allen Carpé, Terris Moore | I30: 1931 | J30: http://maps.google.com/maps?ll=58.907660,-137.519646&spn=.125483,.297781&t=k&hl=en&output=embed
B31: Yu Shan | C31: Taiwan | D31: 23.468915 | E31: 120.957928 | F31: 3952 | G31: 3952 | H31: K. Stopel | I31: 1898 | J31: http://maps.google.com/maps?ll=23.468915,120.957928&spn=.111443,.148890&t=k&hl=en&output=embed
B32: Ngaliema (Mt. Stanley) | C32: Congo/Uganda | D32: 0.383333 | E32: 29.86666 | F32: 5109 | G32: 3951 | H32: Duke of the Abruzzi et al. | I32: 1906 | J32: http://maps.google.com/maps?ll=.383333,29.866660&spn=.485961,.595562&t=k&hl=en&output=embed
B33: Kangchenjunga | C33: India/Nepal | D33: 27.718181 | E33: 88.154297 | F33: 8586 | G33: 3922 | H33: George Band, Joe Brown | I33: 1955 | J33: http://maps.google.com/maps?ll=27.718181,88.154297&spn=.430205,.595562&t=k&hl=en&output=embed
B34: Tirich Mir | C34: Pakistan | D34: 36.255625 | E34: 71.842003 | F34: 7708 | G34: 3910 | H34: Arne Næss, P. Kvernberg, H. Berg, Tony Streather | I34: 1950 | J34: http://maps.google.com/maps?ll=36.255625,71.842003&spn=.195941,.297781&t=k&hl=en&output=embed
B35: Mt. Cameroon | C35: Cameroon | D35: 4.211262 | E35: 9.176502 | F35: 4040 | G35: 3901 | H35: Richard Francis Burton, Gustav Mann | I35: 1861 | J35: http://maps.google.com/maps?ll=4.211262,9.176502&spn=.242330,.297781&t=k&hl=en&output=embed
B36: Mt. Kenya | C36: Kenya | D36: -0.153637 | E36: 37.3106 | F36: 5199 | G36: 3825 | H36: Halford Mackinder, Cesar Ollier, Joseph Brocherel | I36: 1899 | J36: http://maps.google.com/maps?ll=-.153637,37.310600&spn=.242986,.297781&t=k&hl=en&output=embed
B37: Gunung Kerinci | C37: Indonesia | D37: -1.695767 | E37: 101.265793 | F37: 3805 | G37: 3805 | H37: Hasselt, Veth | I37: 1877 | J37: http://maps.google.com/maps?ll=-1.695767,101.265793&spn=.121440,.148890&t=k&hl=en&output=embed
B38: Mt. Erebus | C38: Antarctica | D38: -77.523122 | E38: 167.299805 | F38: 3794 | G38: 3794 | H38: Tannatt David,Douglas Mawson | I38: 1908 | J38: http://maps.google.com/maps?ll=-77.523122,167.299805&spn=3.370119,19.057983&t=k&hl=en&output=embed
B39: Fuji San | C39: Japan | D39: 35.3595 | E39: 138.732375 | F39: 3776 | G39: 3776 | H39: Unknown monk | I39: 663 | J39: http://maps.google.com/maps?ll=35.359500,138.732375&spn=0.099078,.148890&t=k&hl=en&output=embed
B40: Mt. Cook | C40: New Zealand | D40: -43.592328 | E40: 170.141487 | F40: 3755 | G40: 3755 | H40: Tom Fyfe, George Graham, Jack Clarke | I40: 1894 | J40: http://maps.google.com/maps?ll=-43.592328,170.141487&spn=.175987,.297781&t=k&hl=en&output=embed
B41: Jebel Toubkal | C41: Morocco | D41: 31.0666 | E41: -7.91333 | F41: 4167 | G41: 3755 | H41: Marquis de Segonzac, V. Berger, H. Dolbeau | I41: 1923 | J41: http://maps.google.com/maps?ll=31.066600,-7.913330&spn=.208134,.297781&t=k&hl=en&output=embed
B42: Cerro Chirripo | C42: Costa Rica | D42: 9.48333 | E42: -83.51333 | F42: 3820 | G42: 3727 | H42: - | I42: - | J42: http://maps.google.com/maps?ll=9.483330,-83.513330&spn=.239666,.297781&t=k&hl=en&output=embed
B43: Gunung Rinjani | C43: Indonesia | D43: -8.415999 | E43: 116.462631 | F43: 3726 | G43: 3726 | H43: - | I43: - | J43: http://maps.google.com/maps?ll=-8.415999,116.462631&spn=.120185,.148890&t=k&hl=en&output=embed
B44: Pico Teide | C44: Spain | D44: 28.272335 | E44: -16.642399 | F44: 3718 | G44: 3718 | H44: Sir Edmund Scory | I44: 1582 | J44: http://maps.google.com/maps?ll=28.272335,-16.642399&spn=.107000,.148890&t=k&hl=en&output=embed
B45: Monte San Valentin | C45: Chile | D45: -46.6 | E45: -73.3333 | F45: 4058 | G45: 3696 | H45: - | I45: - | J45: http://maps.google.com/maps?ll=-46.600000,-73.333300&spn=.667820,1.191124&t=k&hl=en&output=embed
B46: Gunnbjørnsfjeld | C46: Greenland | D46: 68.91333 | E46: -29.9 | F46: 3694 | G46: 3694 | H46: Augustine Cortauld, Jack Longland, Ebbe Munck, H.G. Wager, Laurence Wager | I46: 1935 | J46: http://maps.google.com/maps?ll=68.913330,-29.900000&spn=1.398864,4.764496&t=k&hl=en&output=embed
B47: Nevado Ojos del Salado | C47: Argentina/Chile | D47: -27.118424 | E47: -68.530312 | F47: 6893 | G47: 3688 | H47: Justyn Wojsznis, Jan Szczepanski | I47: 1937 | J47: http://maps.google.com/maps?ll=-27.118424,-68.530312&spn=.216274,.297781&t=k&hl=en&output=embed
B48: Gunung Semeru | C48: Indonesia | D48: -8.110556 | E48: 112.923317 | F48: 3676 | G48: 3676 | H48: - | I48: - | J48: http://maps.google.com/maps?ll=-8.110556,112.923317&spn=.240556,.297781&t=k&hl=en&output=embed
B49: Finisterre Range HP | C49: Papua New Guinea | D49: -5.95 | E49: 146.36666 | F49: 4125 | G49: 3675 | H49: Hugo Zöller | I49: 1889 | J49: http://maps.google.com/maps?ll=-5.950000,146.366660&spn=.241678,.297781&t=k&hl=en&output=embed
B50: Ritacuba Blanco | C50: Colombia | D50: 6.373306 | E50: -72.298279 | F50: 5410 | G50: 3645 | H50: - | I50: - | J50: http://maps.google.com/maps?ll=6.373306,-72.298279&spn=.482968,.595562&t=k&hl=en&output=embed
B51: Minya Konka | C51: China | D51: 29.6 | E51: 101.88333 | F51: 7556 | G51: 3642 | H51: US american explorer team | I51: 1932 | J51: http://maps.google.com/maps?ll=29.600000,101.883330&spn=.422549,.595562&t=k&hl=en&output=embed
B52: Mt. Ararat (Agri Dagi) | C52: Turkey | D52: 39.708243 | E52: 44.290009 | F52: 5137 | G52: 3611 | H52: J. J. Friedrich Parrot jun. | I52: 1829 | J52: http://maps.google.com/maps?ll=39.708243,44.290009&spn=.186931,.297781&t=k&hl=en&output=embed
B53: Kongur Shan | C53: China | D53: 38.588967 | E53: 75.297546 | F53: 7649 | G53: 3585 | H53: Chris Bonington, Al Rouse, Peter Boardman, Joe Tasker | I53: 1981 | J53: http://maps.google.com/maps?ll=38.588967,75.297546&spn=.759711,1.191124&t=k&hl=en&output=embed
B54: Mt. Blackburn | C54: US | D54: 61.732217 | E54: -143.425999 | F54: 4996 | G54: 3535 | H54: Bruce Gilbert, Dick Wahlstrom, Hans Gmoser, Adolf Bitterlich, Leon Blumer | I54: 1958 | J54: http://maps.google.com/maps?ll=61.732217,-143.425999&spn=.230152,.595562&t=k&hl=en&output=embed

Sheet Calculations
B2: Calculations
B4: Control parameters
B6: Actual sort criterion | D6: 2
B8: Actual snapshot start | D8: 27
B9: Actual selection in table | D9: 31
B10: Actual selection in raw data | D10: 31
B11: Actual URL | D11: =INDEX(Data!$J$5:$J$54,$D$10,1) -> http://maps.google.com/maps?ll=4.211262,9.176502&spn=.242330,.297781&t=k&hl=en&output=embed
B13: Sort Table
B15: No. | C15: Sort Criterion | D15: Sort Dummy | E15: Sorted Values | F15: Position | G15: Summit Name | H15: Country | I15: Elevation in m | J15: Prominence in m | K15: First Ascent by | L15: Year | M15: Lat changed | N15: Long changed | O15: Lat highlight | P15: Long highlight
B16: 1 | C16: =OFFSET(Data!E5,0,$D$6) -> 8848 | D16: =C16+B16/1000000 -> 8848.000001 | E16: =LARGE($D$16:$D$65,B16) -> 8848.000001 | F16: =MATCH(E16,$D$16:$D$65,0) -> 1 | G16: =INDEX(Data!B$5:B$54,$F16,1) -> Mt. Everest | H16: =INDEX(Data!C$5:C$54,$F16,1) -> Nepal/Tibet | I16: =INDEX(Data!F$5:F$54,$F16,1) -> 8848 | J16: =INDEX(Data!G$5:G$54,$F16,1) -> 8848 | K16: =INDEX(Data!H$5:H$54,$F16,1) -> Edmund Hillary, Tenzing Norgay | L16: =INDEX(Data!I$5:I$54,$F16,1) -> 1953 | M16: 25.2 | N16: 85.4 | O16: =IF($F16=myRawDataPosition,INDEX(M$16:M$65,$F16,1),NA()) ->  | P16: =IF($F16=myRawDataPosition,INDEX(N$16:N$65,$F16,1),NA()) -> 
B17: 2 | C17: =OFFSET(Data!E6,0,$D$6) -> 6962 | D17: =C17+B17/1000000 -> 6962.000002 | E17: =LARGE($D$16:$D$65,B17) -> 6962.000002 | F17: =MATCH(E17,$D$16:$D$65,0) -> 2 | G17: =INDEX(Data!B$5:B$54,$F17,1) -> Aconcagua | H17: =INDEX(Data!C$5:C$54,$F17,1) -> Argentina | I17: =INDEX(Data!F$5:F$54,$F17,1) -> 6962 | J17: =INDEX(Data!G$5:G$54,$F17,1) -> 6962 | K17: =INDEX(Data!H$5:H$54,$F17,1) -> Matthias Zurbriggen | L17: =INDEX(Data!I$5:I$54,$F17,1) -> 1897 | M17: -16 | N17: -68.8 | O17: =IF($F17=myRawDataPosition,INDEX(Calculations!M$16:M$65,$F17,1),NA()) ->  | P17: =IF($F17=myRawDataPosition,INDEX(Calculations!N$16:N$65,$F17,1),NA()) -> 
B18: 3 | C18: =OFFSET(Data!E7,0,$D$6) -> 6138 | D18: 6138.000003 | E18: 6138.000003 | F18: 3 | G18: =INDEX(Data!B$5:B$54,$F18,1) -> Mt. McKinley (Denali) | H18: =INDEX(Data!C$5:C$54,$F18,1) -> US | I18: =INDEX(Data!F$5:F$54,$F18,1) -> 6194 | J18: =INDEX(Data!G$5:G$54,$F18,1) -> 6138 | K18: =INDEX(Data!H$5:H$54,$F18,1) -> Hudson Stuck | L18: =INDEX(Data!I$5:I$54,$F18,1) -> 1913 | M18: 59.3 | N18: -148.9 | O18: =IF($F18=myRawDataPosition,INDEX(Calculations!M$16:M$65,$F18,1),NA()) ->  | P18: =IF($F18=myRawDataPosition,INDEX(Calculations!N$16:N$65,$F18,1),NA()) -> 
B19: 4 | C19: =OFFSET(Data!E8,0,$D$6) -> 5885 | D19: 5885.000004 | E19: 5885.000004 | F19: 4 | G19: =INDEX(Data!B$5:B$54,$F19,1) -> Kilimanjaro | H19: =INDEX(Data!C$5:C$54,$F19,1) -> Tanzania | I19: =INDEX(Data!F$5:F$54,$F19,1) -> 5895 | J19: =INDEX(Data!G$5:G$54,$F19,1) -> 5885 | K19: =INDEX(Data!H$5:H$54,$F19,1) -> Hans Meyer, Ludwig Purtscheller, Yohani Kinyala Lauwo | L19: =INDEX(Data!I$5:I$54,$F19,1) -> 1889 | M19: 4.3 | N19: 37.4 | O19: =IF($F19=myRawDataPosition,INDEX(Calculations!M$16:M$65,$F19,1),NA()) ->  | P19: =IF($F19=myRawDataPosition,INDEX(Calculations!N$16:N$65,$F19,1),NA()) -> 
B20: 5 | C20: =OFFSET(Data!E9,0,$D$6) -> 5509 | D20: 5509.000005 | E20: 5509.000005 | F20: 5 | G20: =INDEX(Data!B$5:B$54,$F20,1) -> Cristobal Colon | H20: =INDEX(Data!C$5:C$54,$F20,1) -> Colombia | I20: =INDEX(Data!F$5:F$54,$F20,1) -> 5700 | J20: =INDEX(Data!G$5:G$54,$F20,1) -> 5509 | K20: =INDEX(Data!H$5:H$54,$F20,1) -> - | L20: =INDEX(Data!I$5:I$54,$F20,1) -> - | M20: 13.3 | N20: -72.5 | O20: =IF($F20=myRawDataPosition,INDEX(Calculations!M$16:M$65,$F20,1),NA()) ->  | P20: =IF($F20=myRawDataPosition,INDEX(Calculations!N$16:N$65,$F20,1),NA()) -> 
B21: 6 | C21: =OFFSET(Data!E10,0,$D$6) -> 5250 | D21: 5250.000006 | E21: 5250.000006 | F21: 6 | G21: =INDEX(Data!B$5:B$54,$F21,1) -> Mt. Logan | H21: =INDEX(Data!C$5:C$54,$F21,1) -> Canada | I21: =INDEX(Data!F$5:F$54,$F21,1) -> 5959 | J21: =INDEX(Data!G$5:G$54,$F21,1) -> 5250 | K21: =INDEX(Data!H$5:H$54,$F21,1) -> Albert H. MacCarthy, W. W. Foster | L21: =INDEX(Data!I$5:I$54,$F21,1) -> 1925 | M21: 55.9 | N21: -138.3 | O21: =IF($F21=myRawDataPosition,INDEX(Calculations!M$16:M$65,$F21,1),NA()) ->  | P21: =IF($F21=myRawDataPosition,INDEX(Calculations!N$16:N$65,$F21,1),NA()) -> 
B22: 7 | C22: =OFFSET(Data!E11,0,$D$6) -> 4922 | D22: 4922.000007 | E22: 4922.000007 | F22: 7 | G22: =INDEX(Data!B$5:B$54,$F22,1) -> Pico de Orizaba (Citlaltepetl) | H22: =INDEX(Data!C$5:C$54,$F22,1) -> Mexico | I22: =INDEX(Data!F$5:F$54,$F22,1) -> 5636 | J22: =INDEX(Data!G$5:G$54,$F22,1) -> 4922 | K22: =INDEX(Data!H$5:H$54,$F22,1) -> F. Maynard, G. Reynolds | L22: =INDEX(Data!I$5:I$54,$F22,1) -> 1848 | M22: 18.7 | N22: -95.7 | O22: =IF($F22=myRawDataPosition,INDEX(Calculations!M$16:M$65,$F22,1),NA()) ->  | P22: =IF($F22=myRawDataPosition,INDEX(Calculations!N$16:N$65,$F22,1),NA()) -> 
B23: 8 | C23: =OFFSET(Data!E12,0,$D$6) -> 4892 | D23: 4892.000008 | E23: 4892.000008 | F23: 8 | G23: =INDEX(Data!B$5:B$54,$F23,1) -> Vinson Massif | H23: =INDEX(Data!C$5:C$54,$F23,1) -> Antarctica | I23: =INDEX(Data!F$5:F$54,$F23,1) -> 4892 | J23: =INDEX(Data!G$5:G$54,$F23,1) -> 4892 | K23: =INDEX(Data!H$5:H$54,$F23,1) -> Nicholas Clinch | L23: =INDEX(Data!I$5:I$54,$F23,1) -> 1966 | M23: -78.51 | N23: -84.6 | O23: =IF($F23=myRawDataPosition,INDEX(Calculations!M$16:M$65,$F23,1),NA()) ->  | P23: =IF($F23=myRawDataPosition,INDEX(Calculations!N$16:N$65,$F23,1),NA()) -> 
B24: 9 | C24: =OFFSET(Data!E13,0,$D$6) -> 4884 | D24: 4884.000009 | E24: 4884.000009 | F24: 9 | G24: =INDEX(Data!B$5:B$54,$F24,1) -> Puncak Jaya | H24: =INDEX(Data!C$5:C$54,$F24,1) -> Indonesia | I24: =INDEX(Data!F$5:F$54,$F24,1) -> 4884 | J24: =INDEX(Data!G$5:G$54,$F24,1) -> 4884 | K24: =INDEX(Data!H$5:H$54,$F24,1) -> Heinrich Harrer et al. | L24: =INDEX(Data!I$5:I$54,$F24,1) -> 1962 | M24: 3.5 | N24: 136.3 | O24: =IF($F24=myRawDataPosition,INDEX(Calculations!M$16:M$65,$F24,1),NA()) ->  | P24: =IF($F24=myRawDataPosition,INDEX(Calculations!N$16:N$65,$F24,1),NA()) -> 
B25: 10 | C25: =OFFSET(Data!E14,0,$D$6) -> 4741 | D25: 4741.00001 | E25: 4741.00001 | F25: 10 | G25: =INDEX(Data!B$5:B$54,$F25,1) -> Gora Elbrus | H25: =INDEX(Data!C$5:C$54,$F25,1) -> Russia | I25: =INDEX(Data!F$5:F$54,$F25,1) -> 5642 | J25: =INDEX(Data!G$5:G$54,$F25,1) -> 4741 | K25: =INDEX(Data!H$5:H$54,$F25,1) -> Florence Crauford Grove, Frederick Gardner, Horace Walker, Peter Knubel | L25: =INDEX(Data!I$5:I$54,$F25,1) -> 1874 | M25: 37.7 | N25: 42.3 | O25: =IF($F25=myRawDataPosition,INDEX(Calculations!M$16:M$65,$F25,1),NA()) ->  | P25: =IF($F25=myRawDataPosition,INDEX(Calculations!N$16:N$65,$F25,1),NA()) -> 
B26: 11 | C26: =OFFSET(Data!E15,0,$D$6) -> 4696 | D26: 4696.000011 | E26: 4696.000011 | F26: 11 | G26: =INDEX(Data!B$5:B$54,$F26,1) -> Mont Blanc | H26: =INDEX(Data!C$5:C$54,$F26,1) -> France/Italy | I26: =INDEX(Data!F$5:F$54,$F26,1) -> 4809 | J26: =INDEX(Data!G$5:G$54,$F26,1) -> 4696 | K26: =INDEX(Data!H$5:H$54,$F26,1) -> Jacques Balmat, Michel-Gabriel Paccard | L26: =INDEX(Data!I$5:I$54,$F26,1) -> 1786 | M26: 39.5 | N26: 6.866 | O26: =IF($F26=myRawDataPosition,INDEX(Calculations!M$16:M$65,$F26,1),NA()) ->  | P26: =IF($F26=myRawDataPosition,INDEX(Calculations!N$16:N$65,$F26,1),NA()) -> 
B27: 12 | C27: =OFFSET(Data!E16,0,$D$6) -> 4667 | D27: 4667.000012 | E27: 4667.000012 | F27: 12 | G27: =INDEX(Data!B$5:B$54,$F27,1) -> Damavand | H27: =INDEX(Data!C$5:C$54,$F27,1) -> Iran | I27: =INDEX(Data!F$5:F$54,$F27,1) -> 5610 | J27: =INDEX(Data!G$5:G$54,$F27,1) -> 4667 | K27: =INDEX(Data!H$5:H$54,$F27,1) -> Abu Dolaf Kazraji | L27: =INDEX(Data!I$5:I$54,$F27,1) -> 905 | M27: 31.1 | N27: 52 | O27: =IF($F27=myRawDataPosition,INDEX(Calculations!M$16:M$65,$F27,1),NA()) ->  | P27: =IF($F27=myRawDataPosition,INDEX(Calculations!N$16:N$65,$F27,1),NA()) -> 
B28: 13 | C28: =OFFSET(Data!E17,0,$D$6) -> 4649 | D28: 4649.000013 | E28: 4649.000013 | F28: 13 | G28: =INDEX(Data!B$5:B$54,$F28,1) -> Klyuchevskaya Volcano | H28: =INDEX(Data!C$5:C$54,$F28,1) -> Russia | I28: =INDEX(Data!F$5:F$54,$F28,1) -> 4750 | J28: =INDEX(Data!G$5:G$54,$F28,1) -> 4649 | K28: =INDEX(Data!H$5:H$54,$F28,1) -> Daniel Gauss et al. | L28: =INDEX(Data!I$5:I$54,$F28,1) -> 1788 | M28: 49.9 | N28: 159.3 | O28: =IF($F28=myRawDataPosition,INDEX(Calculations!M$16:M$65,$F28,1),NA()) ->  | P28: =IF($F28=myRawDataPosition,INDEX(Calculations!N$16:N$65,$F28,1),NA()) -> 
B29: 14 | C29: =OFFSET(Data!E18,0,$D$6) -> 4608 | D29: 4608.000014 | E29: 4608.000014 | F29: 14 | G29: =INDEX(Data!B$5:B$54,$F29,1) -> Nanga Parbat | H29: =INDEX(Data!C$5:C$54,$F29,1) -> Pakistan | I29: =INDEX(Data!F$5:F$54,$F29,1) -> 8125 | J29: =INDEX(Data!G$5:G$54,$F29,1) -> 4608 | K29: =INDEX(Data!H$5:H$54,$F29,1) -> Hermann Buhl | L29: =INDEX(Data!I$5:I$54,$F29,1) -> 1953 | M29: 30.5 | N29: 73.2 | O29: =IF($F29=myRawDataPosition,INDEX(Calculations!M$16:M$65,$F29,1),NA()) ->  | P29: =IF($F29=myRawDataPosition,INDEX(Calculations!N$16:N$65,$F29,1),NA()) -> 
B30: 15 | C30: =OFFSET(Data!E19,0,$D$6) -> 4205 | D30: 4205.000015 | E30: 4205.000015 | F30: 15 | G30: =INDEX(Data!B$5:B$54,$F30,1) -> Mauna Kea | H30: =INDEX(Data!C$5:C$54,$F30,1) -> US | I30: =INDEX(Data!F$5:F$54,$F30,1) -> 4205 | J30: =INDEX(Data!G$5:G$54,$F30,1) -> 4205 | K30: =INDEX(Data!H$5:H$54,$F30,1) -> - | L30: =INDEX(Data!I$5:I$54,$F30,1) -> - | M30: 19.4 | N30: -153.5 | O30: =IF($F30=myRawDataPosition,INDEX(Calculations!M$16:M$65,$F30,1),NA()) ->  | P30: =IF($F30=myRawDataPosition,INDEX(Calculations!N$16:N$65,$F30,1),NA()) -> 
B31: 16 | C31: =OFFSET(Data!E20,0,$D$6) -> 4148 | D31: 4148.000016 | E31: 4148.000016 | F31: 16 | G31: =INDEX(Data!B$5:B$54,$F31,1) -> Jengish Chokusu (ex. Pik Pobedy) | H31: =INDEX(Data!C$5:C$54,$F31,1) -> Kyrgyzstan/China | I31: =INDEX(Data!F$5:F$54,$F31,1) -> 7439 | J31: =INDEX(Data!G$5:G$54,$F31,1) -> 4148 | K31: =INDEX(Data!H$5:H$54,$F31,1) -> Witali Abalakow et al. | L31: =INDEX(Data!I$5:I$54,$F31,1) -> 1956 | M31: 36.3 | N31: 79.5 | O31: =IF($F31=myRawDataPosition,INDEX(Calculations!M$16:M$65,$F31,1),NA()) ->  | P31: =IF($F31=myRawDataPosition,INDEX(Calculations!N$16:N$65,$F31,1),NA()) -> 
B32: 17 | C32: =OFFSET(Data!E21,0,$D$6) -> 4122 | D32: 4122.000017 | E32: 4122.000018 | F32: 18 | G32: =INDEX(Data!B$5:B$54,$F32,1) -> Bogda Shan | H32: =INDEX(Data!C$5:C$54,$F32,1) -> China | I32: =INDEX(Data!F$5:F$54,$F32,1) -> 5445 | J32: =INDEX(Data!G$5:G$54,$F32,1) -> 4122 | K32: =INDEX(Data!H$5:H$54,$F32,1) -> - | L32: =INDEX(Data!I$5:I$54,$F32,1) -> - | M32: 5.5 | N32: -77.7 | O32: =IF($F32=myRawDataPosition,INDEX(Calculations!M$16:M$65,$F32,1),NA()) ->  | P32: =IF($F32=myRawDataPosition,INDEX(Calculations!N$16:N$65,$F32,1),NA()) -> 
B33: 18 | C33: =OFFSET(Data!E22,0,$D$6) -> 4122 | D33: 4122.000018 | E33: 4122.000017 | F33: 17 | G33: =INDEX(Data!B$5:B$54,$F33,1) -> Chimborazo | H33: =INDEX(Data!C$5:C$54,$F33,1) -> Ecuador | I33: =INDEX(Data!F$5:F$54,$F33,1) -> 6267 | J33: =INDEX(Data!G$5:G$54,$F33,1) -> 4122 | K33: =INDEX(Data!H$5:H$54,$F33,1) -> Edward Whymper | L33: =INDEX(Data!I$5:I$54,$F33,1) -> 1880 | M33: 37.9 | N33: 87.9 | O33: =IF($F33=myRawDataPosition,INDEX(Calculations!M$16:M$65,$F33,1),NA()) ->  | P33: =IF($F33=myRawDataPosition,INDEX(Calculations!N$16:N$65,$F33,1),NA()) -> 
B34: 19 | C34: =OFFSET(Data!E23,0,$D$6) -> 4106 | D34: 4106.000019 | E34: 4106.000019 | F34: 19 | G34: =INDEX(Data!B$5:B$54,$F34,1) -> Namcha Barwa | H34: =INDEX(Data!C$5:C$54,$F34,1) -> China | I34: =INDEX(Data!F$5:F$54,$F34,1) -> 7782 | J34: =INDEX(Data!G$5:G$54,$F34,1) -> 4106 | K34: =INDEX(Data!H$5:H$54,$F34,1) -> Bianba Zaxi et al. | L34: =INDEX(Data!I$5:I$54,$F34,1) -> 1992 | M34: 26.2 | N34: 94.2 | O34: =IF($F34=myRawDataPosition,INDEX(Calculations!M$16:M$65,$F34,1),NA()) ->  | P34: =IF($F34=myRawDataPosition,INDEX(Calculations!N$16:N$65,$F34,1),NA()) -> 
B35: 20 | C35: =OFFSET(Data!E24,0,$D$6) -> 4095 | D35: 4095.00002 | E35: 4095.00002 | F35: 20 | G35: =INDEX(Data!B$5:B$54,$F35,1) -> Kinabalu | H35: =INDEX(Data!C$5:C$54,$F35,1) -> Malaysia | I35: =INDEX(Data!F$5:F$54,$F35,1) -> 4095 | J35: =INDEX(Data!G$5:G$54,$F35,1) -> 4095 | K35: =INDEX(Data!H$5:H$54,$F35,1) -> H. Low, S. St. John | L35: =INDEX(Data!I$5:I$54,$F35,1) -> 1858 | M35: 10 | N35: 115.8 | O35: =IF($F35=myRawDataPosition,INDEX(Calculations!M$16:M$65,$F35,1),NA()) ->  | P35: =IF($F35=myRawDataPosition,INDEX(Calculations!N$16:N$65,$F35,1),NA()) -> 
B36: 21 | C36: =OFFSET(Data!E25,0,$D$6) -> 4023 | D36: 4023.000021 | E36: 4023.000021 | F36: 21 | G36: =INDEX(Data!B$5:B$54,$F36,1) -> Mt. Rainier | H36: =INDEX(Data!C$5:C$54,$F36,1) -> US | I36: =INDEX(Data!F$5:F$54,$F36,1) -> 4393 | J36: =INDEX(Data!G$5:G$54,$F36,1) -> 4023 | K36: =INDEX(Data!H$5:H$54,$F36,1) -> Hazard Stevens, P.B. Van Trump | L36: =INDEX(Data!I$5:I$54,$F36,1) -> 1870 | M36: 40.8 | N36: -120.4 | O36: =IF($F36=myRawDataPosition,INDEX(Calculations!M$16:M$65,$F36,1),NA()) ->  | P36: =IF($F36=myRawDataPosition,INDEX(Calculations!N$16:N$65,$F36,1),NA()) -> 
B37: 22 | C37: =OFFSET(Data!E26,0,$D$6) -> 4017 | D37: 4017.000022 | E37: 4017.000022 | F37: 22 | G37: =INDEX(Data!B$5:B$54,$F37,1) -> K2 | H37: =INDEX(Data!C$5:C$54,$F37,1) -> Pakistan/China | I37: =INDEX(Data!F$5:F$54,$F37,1) -> 8611 | J37: =INDEX(Data!G$5:G$54,$F37,1) -> 4017 | K37: =INDEX(Data!H$5:H$54,$F37,1) -> Achille Compagnoni, Lino Lacedelli | L37: =INDEX(Data!I$5:I$54,$F37,1) -> 1954 | M37: 31.2 | N37: 75.7 | O37: =IF($F37=myRawDataPosition,INDEX(Calculations!M$16:M$65,$F37,1),NA()) ->  | P37: =IF($F37=myRawDataPosition,INDEX(Calculations!N$16:N$65,$F37,1),NA()) -> 
B38: 23 | C38: =OFFSET(Data!E27,0,$D$6) -> 3980 | D38: 3980.000023 | E38: 3980.000024 | F38: 24 | G38: =INDEX(Data!B$5:B$54,$F38,1) -> Volcan Tajumulco | H38: =INDEX(Data!C$5:C$54,$F38,1) -> Guatemala | I38: =INDEX(Data!F$5:F$54,$F38,1) -> 4220 | J38: =INDEX(Data!G$5:G$54,$F38,1) -> 3980 | K38: =INDEX(Data!H$5:H$54,$F38,1) -> - | L38: =INDEX(Data!I$5:I$54,$F38,1) -> - | M38: 14.8 | N38: 37.9 | O38: =IF($F38=myRawDataPosition,INDEX(Calculations!M$16:M$65,$F38,1),NA()) ->  | P38: =IF($F38=myRawDataPosition,INDEX(Calculations!N$16:N$65,$F38,1),NA()) -> 
B39: 24 | C39: =OFFSET(Data!E28,0,$D$6) -> 3980 | D39: 3980.000024 | E39: 3980.000023 | F39: 23 | G39: =INDEX(Data!B$5:B$54,$F39,1) -> Ras Dejen | H39: =INDEX(Data!C$5:C$54,$F39,1) -> Ethiopia | I39: =INDEX(Data!F$5:F$54,$F39,1) -> 4533 | J39: =INDEX(Data!G$5:G$54,$F39,1) -> 3980 | K39: =INDEX(Data!H$5:H$54,$F39,1) -> Ferret, Galinier | L39: =INDEX(Data!I$5:I$54,$F39,1) -> 1841 | M39: 16.2 | N39: -90.8 | O39: =IF($F39=myRawDataPosition,INDEX(Calculations!M$16:M$65,$F39,1),NA()) ->  | P39: =IF($F39=myRawDataPosition,INDEX(Calculations!N$16:N$65,$F39,1),NA()) -> 
B40: 25 | C40: =OFFSET(Data!E29,0,$D$6) -> 3957 | D40: 3957.000025 | E40: 3957.000025 | F40: 25 | G40: =INDEX(Data!B$5:B$54,$F40,1) -> Pico Bolivar | H40: =INDEX(Data!C$5:C$54,$F40,1) -> Venezuela | I40: =INDEX(Data!F$5:F$54,$F40,1) -> 4981 | J40: =INDEX(Data!G$5:G$54,$F40,1) -> 3957 | K40: =INDEX(Data!H$5:H$54,$F40,1) -> Enrique Bourgoin, H. Márquez Molina, Domingo Peña | L40: =INDEX(Data!I$5:I$54,$F40,1) -> 1935 | M40: 11.8 | N40: -69.8 | O40: =IF($F40=myRawDataPosition,INDEX(Calculations!M$16:M$65,$F40,1),NA()) ->  | P40: =IF($F40=myRawDataPosition,INDEX(Calculations!N$16:N$65,$F40,1),NA()) -> 
B41: 26 | C41: =OFFSET(Data!E30,0,$D$6) -> 3955 | D41: 3955.000026 | E41: 3955.000026 | F41: 26 | G41: =INDEX(Data!B$5:B$54,$F41,1) -> Mt. Fairweather | H41: =INDEX(Data!C$5:C$54,$F41,1) -> US/Canada | I41: =INDEX(Data!F$5:F$54,$F41,1) -> 4671 | J41: =INDEX(Data!G$5:G$54,$F41,1) -> 3955 | K41: =INDEX(Data!H$5:H$54,$F41,1) -> Allen Carpé, Terris Moore | L41: =INDEX(Data!I$5:I$54,$F41,1) -> 1931 | M41: 53.9 | N41: -135.5 | O41: =IF($F41=myRawDataPosition,INDEX(Calculations!M$16:M$65,$F41,1),NA()) ->  | P41: =IF($F41=myRawDataPosition,INDEX(Calculations!N$16:N$65,$F41,1),NA()) -> 
B42: 27 | C42: =OFFSET(Data!E31,0,$D$6) -> 3952 | D42: 3952.000027 | E42: 3952.000027 | F42: 27 | G42: =INDEX(Data!B$5:B$54,$F42,1) -> Yu Shan | H42: =INDEX(Data!C$5:C$54,$F42,1) -> Taiwan | I42: =INDEX(Data!F$5:F$54,$F42,1) -> 3952 | J42: =INDEX(Data!G$5:G$54,$F42,1) -> 3952 | K42: =INDEX(Data!H$5:H$54,$F42,1) -> K. Stopel | L42: =INDEX(Data!I$5:I$54,$F42,1) -> 1898 | M42: 21.6 | N42: 120.5 | O42: =IF($F42=myRawDataPosition,INDEX(Calculations!M$16:M$65,$F42,1),NA()) ->  | P42: =IF($F42=myRawDataPosition,INDEX(Calculations!N$16:N$65,$F42,1),NA()) -> 
B43: 28 | C43: =OFFSET(Data!E32,0,$D$6) -> 3951 | D43: 3951.000028 | E43: 3951.000028 | F43: 28 | G43: =INDEX(Data!B$5:B$54,$F43,1) -> Ngaliema (Mt. Stanley) | H43: =INDEX(Data!C$5:C$54,$F43,1) -> Congo/Uganda | I43: =INDEX(Data!F$5:F$54,$F43,1) -> 5109 | J43: =INDEX(Data!G$5:G$54,$F43,1) -> 3951 | K43: =INDEX(Data!H$5:H$54,$F43,1) -> Duke of the Abruzzi et al. | L43: =INDEX(Data!I$5:I$54,$F43,1) -> 1906 | M43: 6.5 | N43: 30 | O43: =IF($F43=myRawDataPosition,INDEX(Calculations!M$16:M$65,$F43,1),NA()) ->  | P43: =IF($F43=myRawDataPosition,INDEX(Calculations!N$16:N$65,$F43,1),NA()) -> 
B44: 29 | C44: =OFFSET(Data!E33,0,$D$6) -> 3922 | D44: 3922.000029 | E44: 3922.000029 | F44: 29 | G44: =INDEX(Data!B$5:B$54,$F44,1) -> Kangchenjunga | H44: =INDEX(Data!C$5:C$54,$F44,1) -> India/Nepal | I44: =INDEX(Data!F$5:F$54,$F44,1) -> 8586 | J44: =INDEX(Data!G$5:G$54,$F44,1) -> 3922 | K44: =INDEX(Data!H$5:H$54,$F44,1) -> George Band, Joe Brown | L44: =INDEX(Data!I$5:I$54,$F44,1) -> 1955 | M44: 25 | N44: 87.4 | O44: =IF($F44=myRawDataPosition,INDEX(Calculations!M$16:M$65,$F44,1),NA()) ->  | P44: =IF($F44=myRawDataPosition,INDEX(Calculations!N$16:N$65,$F44,1),NA()) -> 
B45: 30 | C45: =OFFSET(Data!E34,0,$D$6) -> 3910 | D45: 3910.00003 | E45: 3910.00003 | F45: 30 | G45: =INDEX(Data!B$5:B$54,$F45,1) -> Tirich Mir | H45: =INDEX(Data!C$5:C$54,$F45,1) -> Pakistan | I45: =INDEX(Data!F$5:F$54,$F45,1) -> 7708 | J45: =INDEX(Data!G$5:G$54,$F45,1) -> 3910 | K45: =INDEX(Data!H$5:H$54,$F45,1) -> Arne Næss, P. Kvernberg, H. Berg, Tony Streather | L45: =INDEX(Data!I$5:I$54,$F45,1) -> 1950 | M45: 31.3 | N45: 70.8 | O45: =IF($F45=myRawDataPosition,INDEX(Calculations!M$16:M$65,$F45,1),NA()) ->  | P45: =IF($F45=myRawDataPosition,INDEX(Calculations!N$16:N$65,$F45,1),NA()) -> 
B46: 31 | C46: =OFFSET(Data!E35,0,$D$6) -> 3901 | D46: 3901.000031 | E46: 3901.000031 | F46: 31 | G46: =INDEX(Data!B$5:B$54,$F46,1) -> Mt. Cameroon | H46: =INDEX(Data!C$5:C$54,$F46,1) -> Cameroon | I46: =INDEX(Data!F$5:F$54,$F46,1) -> 4040 | J46: =INDEX(Data!G$5:G$54,$F46,1) -> 3901 | K46: =INDEX(Data!H$5:H$54,$F46,1) -> Richard Francis Burton, Gustav Mann | L46: =INDEX(Data!I$5:I$54,$F46,1) -> 1861 | M46: 8.9 | N46: 9.176502 | O46: =IF($F46=myRawDataPosition,INDEX(Calculations!M$16:M$65,$F46,1),NA()) -> 8.9 | P46: =IF($F46=myRawDataPosition,INDEX(Calculations!N$16:N$65,$F46,1),NA()) -> 9.176502
B47: 32 | C47: =OFFSET(Data!E36,0,$D$6) -> 3825 | D47: 3825.000032 | E47: 3825.000032 | F47: 32 | G47: =INDEX(Data!B$5:B$54,$F47,1) -> Mt. Kenya | H47: =INDEX(Data!C$5:C$54,$F47,1) -> Kenya | I47: =INDEX(Data!F$5:F$54,$F47,1) -> 5199 | J47: =INDEX(Data!G$5:G$54,$F47,1) -> 3825 | K47: =INDEX(Data!H$5:H$54,$F47,1) -> Halford Mackinder, Cesar Ollier, Joseph Brocherel | L47: =INDEX(Data!I$5:I$54,$F47,1) -> 1899 | M47: 6.2 | N47: 37.3 | O47: =IF($F47=myRawDataPosition,INDEX(Calculations!M$16:M$65,$F47,1),NA()) ->  | P47: =IF($F47=myRawDataPosition,INDEX(Calculations!N$16:N$65,$F47,1),NA()) -> 
B48: 33 | C48: =OFFSET(Data!E37,0,$D$6) -> 3805 | D48: 3805.000033 | E48: 3805.000033 | F48: 33 | G48: =INDEX(Data!B$5:B$54,$F48,1) -> Gunung Kerinci | H48: =INDEX(Data!C$5:C$54,$F48,1) -> Indonesia | I48: =INDEX(Data!F$5:F$54,$F48,1) -> 3805 | J48: =INDEX(Data!G$5:G$54,$F48,1) -> 3805 | K48: =INDEX(Data!H$5:H$54,$F48,1) -> Hasselt, Veth | L48: =INDEX(Data!I$5:I$54,$F48,1) -> 1877 | M48: 5 | N48: 100.6 | O48: =IF($F48=myRawDataPosition,INDEX(Calculations!M$16:M$65,$F48,1),NA()) ->  | P48: =IF($F48=myRawDataPosition,INDEX(Calculations!N$16:N$65,$F48,1),NA()) -> 
B49: 34 | C49: =OFFSET(Data!E38,0,$D$6) -> 3794 | D49: 3794.000034 | E49: 3794.000034 | F49: 34 | G49: =INDEX(Data!B$5:B$54,$F49,1) -> Mt. Erebus | H49: =INDEX(Data!C$5:C$54,$F49,1) -> Antarctica | I49: =INDEX(Data!F$5:F$54,$F49,1) -> 3794 | J49: =INDEX(Data!G$5:G$54,$F49,1) -> 3794 | K49: =INDEX(Data!H$5:H$54,$F49,1) -> Tannatt David,Douglas Mawson | L49: =INDEX(Data!I$5:I$54,$F49,1) -> 1908 | M49: -75.9 | N49: 165.4 | O49: =IF($F49=myRawDataPosition,INDEX(Calculations!M$16:M$65,$F49,1),NA()) ->  | P49: =IF($F49=myRawDataPosition,INDEX(Calculations!N$16:N$65,$F49,1),NA()) -> 
B50: 35 | C50: =OFFSET(Data!E39,0,$D$6) -> 3776 | D50: 3776.000035 | E50: 3776.000035 | F50: 35 | G50: =INDEX(Data!B$5:B$54,$F50,1) -> Fuji San | H50: =INDEX(Data!C$5:C$54,$F50,1) -> Japan | I50: =INDEX(Data!F$5:F$54,$F50,1) -> 3776 | J50: =INDEX(Data!G$5:G$54,$F50,1) -> 3776 | K50: =INDEX(Data!H$5:H$54,$F50,1) -> Unknown monk | L50: =INDEX(Data!I$5:I$54,$F50,1) -> 663 | M50: 30.2 | N50: 137.7 | O50: =IF($F50=myRawDataPosition,INDEX(Calculations!M$16:M$65,$F50,1),NA()) ->  | P50: =IF($F50=myRawDataPosition,INDEX(Calculations!N$16:N$65,$F50,1),NA()) -> 
B51: 36 | C51: =OFFSET(Data!E40,0,$D$6) -> 3755 | D51: 3755.000036 | E51: 3755.000037 | F51: 37 | G51: =INDEX(Data!B$5:B$54,$F51,1) -> Jebel Toubkal | H51: =INDEX(Data!C$5:C$54,$F51,1) -> Morocco | I51: =INDEX(Data!F$5:F$54,$F51,1) -> 4167 | J51: =INDEX(Data!G$5:G$54,$F51,1) -> 3755 | K51: =INDEX(Data!H$5:H$54,$F51,1) -> Marquis de Segonzac, V. Berger, H. Dolbeau | L51: =INDEX(Data!I$5:I$54,$F51,1) -> 1923 | M51: -25.1 | N51: 168.1 | O51: =IF($F51=myRawDataPosition,INDEX(Calculations!M$16:M$65,$F51,1),NA()) ->  | P51: =IF($F51=myRawDataPosition,INDEX(Calculations!N$16:N$65,$F51,1),NA()) -> 
B52: 37 | C52: =OFFSET(Data!E41,0,$D$6) -> 3755 | D52: 3755.000037 | E52: 3755.000036 | F52: 36 | G52: =INDEX(Data!B$5:B$54,$F52,1) -> Mt. Cook | H52: =INDEX(Data!C$5:C$54,$F52,1) -> New Zealand | I52: =INDEX(Data!F$5:F$54,$F52,1) -> 3755 | J52: =INDEX(Data!G$5:G$54,$F52,1) -> 3755 | K52: =INDEX(Data!H$5:H$54,$F52,1) -> Tom Fyfe, George Graham, Jack Clarke | L52: =INDEX(Data!I$5:I$54,$F52,1) -> 1894 | M52: 27.4 | N52: -7.6 | O52: =IF($F52=myRawDataPosition,INDEX(Calculations!M$16:M$65,$F52,1),NA()) ->  | P52: =IF($F52=myRawDataPosition,INDEX(Calculations!N$16:N$65,$F52,1),NA()) -> 
B53: 38 | C53: =OFFSET(Data!E42,0,$D$6) -> 3727 | D53: 3727.000038 | E53: 3727.000038 | F53: 38 | G53: =INDEX(Data!B$5:B$54,$F53,1) -> Cerro Chirripo | H53: =INDEX(Data!C$5:C$54,$F53,1) -> Costa Rica | I53: =INDEX(Data!F$5:F$54,$F53,1) -> 3820 | J53: =INDEX(Data!G$5:G$54,$F53,1) -> 3727 | K53: =INDEX(Data!H$5:H$54,$F53,1) -> - | L53: =INDEX(Data!I$5:I$54,$F53,1) -> - | M53: 12.5 | N53: -82.2 | O53: =IF($F53=myRawDataPosition,INDEX(Calculations!M$16:M$65,$F53,1),NA()) ->  | P53: =IF($F53=myRawDataPosition,INDEX(Calculations!N$16:N$65,$F53,1),NA()) -> 
B54: 39 | C54: =OFFSET(Data!E43,0,$D$6) -> 3726 | D54: 3726.000039 | E54: 3726.000039 | F54: 39 | G54: =INDEX(Data!B$5:B$54,$F54,1) -> Gunung Rinjani | H54: =INDEX(Data!C$5:C$54,$F54,1) -> Indonesia | I54: =INDEX(Data!F$5:F$54,$F54,1) -> 3726 | J54: =INDEX(Data!G$5:G$54,$F54,1) -> 3726 | K54: =INDEX(Data!H$5:H$54,$F54,1) -> - | L54: =INDEX(Data!I$5:I$54,$F54,1) -> - | M54: 0.8 | N54: 115.5 | O54: =IF($F54=myRawDataPosition,INDEX(Calculations!M$16:M$65,$F54,1),NA()) ->  | P54: =IF($F54=myRawDataPosition,INDEX(Calculations!N$16:N$65,$F54,1),NA()) -> 
B55: 40 | C55: =OFFSET(Data!E44,0,$D$6) -> 3718 | D55: 3718.00004 | E55: 3718.00004 | F55: 40 | G55: =INDEX(Data!B$5:B$54,$F55,1) -> Pico Teide | H55: =INDEX(Data!C$5:C$54,$F55,1) -> Spain | I55: =INDEX(Data!F$5:F$54,$F55,1) -> 3718 | J55: =INDEX(Data!G$5:G$54,$F55,1) -> 3718 | K55: =INDEX(Data!H$5:H$54,$F55,1) -> Sir Edmund Scory | L55: =INDEX(Data!I$5:I$54,$F55,1) -> 1582 | M55: 25.2 | N55: -16.3 | O55: =IF($F55=myRawDataPosition,INDEX(Calculations!M$16:M$65,$F55,1),NA()) ->  | P55: =IF($F55=myRawDataPosition,INDEX(Calculations!N$16:N$65,$F55,1),NA()) -> 
B56: 41 | C56: =OFFSET(Data!E45,0,$D$6) -> 3696 | D56: 3696.000041 | E56: 3696.000041 | F56: 41 | G56: =INDEX(Data!B$5:B$54,$F56,1) -> Monte San Valentin | H56: =INDEX(Data!C$5:C$54,$F56,1) -> Chile | I56: =INDEX(Data!F$5:F$54,$F56,1) -> 4058 | J56: =INDEX(Data!G$5:G$54,$F56,1) -> 3696 | K56: =INDEX(Data!H$5:H$54,$F56,1) -> - | L56: =INDEX(Data!I$5:I$54,$F56,1) -> - | M56: -28.1 | N56: -72.2 | O56: =IF($F56=myRawDataPosition,INDEX(Calculations!M$16:M$65,$F56,1),NA()) ->  | P56: =IF($F56=myRawDataPosition,INDEX(Calculations!N$16:N$65,$F56,1),NA()) -> 
B57: 42 | C57: =OFFSET(Data!E46,0,$D$6) -> 3694 | D57: 3694.000042 | E57: 3694.000042 | F57: 42 | G57: =INDEX(Data!B$5:B$54,$F57,1) -> Gunnbjørnsfjeld | H57: =INDEX(Data!C$5:C$54,$F57,1) -> Greenland | I57: =INDEX(Data!F$5:F$54,$F57,1) -> 3694 | J57: =INDEX(Data!G$5:G$54,$F57,1) -> 3694 | K57: =INDEX(Data!H$5:H$54,$F57,1) -> Augustine Cortauld, Jack Longland, Ebbe Munck, H.G. Wager, Laurence Wager | L57: =INDEX(Data!I$5:I$54,$F57,1) -> 1935 | M57: 68.5 | N57: -29.1 | O57: =IF($F57=myRawDataPosition,INDEX(Calculations!M$16:M$65,$F57,1),NA()) ->  | P57: =IF($F57=myRawDataPosition,INDEX(Calculations!N$16:N$65,$F57,1),NA()) -> 
B58: 43 | C58: =OFFSET(Data!E47,0,$D$6) -> 3688 | D58: 3688.000043 | E58: 3688.000043 | F58: 43 | G58: =INDEX(Data!B$5:B$54,$F58,1) -> Nevado Ojos del Salado | H58: =INDEX(Data!C$5:C$54,$F58,1) -> Argentina/Chile | I58: =INDEX(Data!F$5:F$54,$F58,1) -> 6893 | J58: =INDEX(Data!G$5:G$54,$F58,1) -> 3688 | K58: =INDEX(Data!H$5:H$54,$F58,1) -> Justyn Wojsznis, Jan Szczepanski | L58: =INDEX(Data!I$5:I$54,$F58,1) -> 1937 | M58: -12.1 | N58: -67.8 | O58: =IF($F58=myRawDataPosition,INDEX(Calculations!M$16:M$65,$F58,1),NA()) ->  | P58: =IF($F58=myRawDataPosition,INDEX(Calculations!N$16:N$65,$F58,1),NA()) -> 
B59: 44 | C59: =OFFSET(Data!E48,0,$D$6) -> 3676 | D59: 3676.000044 | E59: 3676.000044 | F59: 44 | G59: =INDEX(Data!B$5:B$54,$F59,1) -> Gunung Semeru | H59: =INDEX(Data!C$5:C$54,$F59,1) -> Indonesia | I59: =INDEX(Data!F$5:F$54,$F59,1) -> 3676 | J59: =INDEX(Data!G$5:G$54,$F59,1) -> 3676 | K59: =INDEX(Data!H$5:H$54,$F59,1) -> - | L59: =INDEX(Data!I$5:I$54,$F59,1) -> - | M59: 0.9 | N59: 112.3 | O59: =IF($F59=myRawDataPosition,INDEX(Calculations!M$16:M$65,$F59,1),NA()) ->  | P59: =IF($F59=myRawDataPosition,INDEX(Calculations!N$16:N$65,$F59,1),NA()) -> 
B60: 45 | C60: =OFFSET(Data!E49,0,$D$6) -> 3675 | D60: 3675.000045 | E60: 3675.000045 | F60: 45 | G60: =INDEX(Data!B$5:B$54,$F60,1) -> Finisterre Range HP | H60: =INDEX(Data!C$5:C$54,$F60,1) -> Papua New Guinea | I60: =INDEX(Data!F$5:F$54,$F60,1) -> 4125 | J60: =INDEX(Data!G$5:G$54,$F60,1) -> 3675 | K60: =INDEX(Data!H$5:H$54,$F60,1) -> Hugo Zöller | L60: =INDEX(Data!I$5:I$54,$F60,1) -> 1889 | M60: 2.3 | N60: 145.5 | O60: =IF($F60=myRawDataPosition,INDEX(Calculations!M$16:M$65,$F60,1),NA()) ->  | P60: =IF($F60=myRawDataPosition,INDEX(Calculations!N$16:N$65,$F60,1),NA()) -> 
B61: 46 | C61: =OFFSET(Data!E50,0,$D$6) -> 3645 | D61: 3645.000046 | E61: 3645.000046 | F61: 46 | G61: =INDEX(Data!B$5:B$54,$F61,1) -> Ritacuba Blanco | H61: =INDEX(Data!C$5:C$54,$F61,1) -> Colombia | I61: =INDEX(Data!F$5:F$54,$F61,1) -> 5410 | J61: =INDEX(Data!G$5:G$54,$F61,1) -> 3645 | K61: =INDEX(Data!H$5:H$54,$F61,1) -> - | L61: =INDEX(Data!I$5:I$54,$F61,1) -> - | M61: 10.5 | N61: -71.1 | O61: =IF($F61=myRawDataPosition,INDEX(Calculations!M$16:M$65,$F61,1),NA()) ->  | P61: =IF($F61=myRawDataPosition,INDEX(Calculations!N$16:N$65,$F61,1),NA()) -> 
B62: 47 | C62: =OFFSET(Data!E51,0,$D$6) -> 3642 | D62: 3642.000047 | E62: 3642.000047 | F62: 47 | G62: =INDEX(Data!B$5:B$54,$F62,1) -> Minya Konka | H62: =INDEX(Data!C$5:C$54,$F62,1) -> China | I62: =INDEX(Data!F$5:F$54,$F62,1) -> 7556 | J62: =INDEX(Data!G$5:G$54,$F62,1) -> 3642 | K62: =INDEX(Data!H$5:H$54,$F62,1) -> US american explorer team | L62: =INDEX(Data!I$5:I$54,$F62,1) -> 1932 | M62: 26.3 | N62: 100.9 | O62: =IF($F62=myRawDataPosition,INDEX(Calculations!M$16:M$65,$F62,1),NA()) ->  | P62: =IF($F62=myRawDataPosition,INDEX(Calculations!N$16:N$65,$F62,1),NA()) -> 
B63: 48 | C63: =OFFSET(Data!E52,0,$D$6) -> 3611 | D63: 3611.000048 | E63: 3611.000048 | F63: 48 | G63: =INDEX(Data!B$5:B$54,$F63,1) -> Mt. Ararat (Agri Dagi) | H63: =INDEX(Data!C$5:C$54,$F63,1) -> Turkey | I63: =INDEX(Data!F$5:F$54,$F63,1) -> 5137 | J63: =INDEX(Data!G$5:G$54,$F63,1) -> 3611 | K63: =INDEX(Data!H$5:H$54,$F63,1) -> J. J. Friedrich Parrot jun. | L63: =INDEX(Data!I$5:I$54,$F63,1) -> 1829 | M63: 34.1 | N63: 43.8 | O63: =IF($F63=myRawDataPosition,INDEX(Calculations!M$16:M$65,$F63,1),NA()) ->  | P63: =IF($F63=myRawDataPosition,INDEX(Calculations!N$16:N$65,$F63,1),NA()) -> 
B64: 49 | C64: =OFFSET(Data!E53,0,$D$6) -> 3585 | D64: 3585.000049 | E64: 3585.000049 | F64: 49 | G64: =INDEX(Data!B$5:B$54,$F64,1) -> Kongur Shan | H64: =INDEX(Data!C$5:C$54,$F64,1) -> China | I64: =INDEX(Data!F$5:F$54,$F64,1) -> 7649 | J64: =INDEX(Data!G$5:G$54,$F64,1) -> 3585 | K64: =INDEX(Data!H$5:H$54,$F64,1) -> Chris Bonington, Al Rouse, Peter Boardman, Joe Tasker | L64: =INDEX(Data!I$5:I$54,$F64,1) -> 1981 | M64: 33.4 | N64: 74.5 | O64: =IF($F64=myRawDataPosition,INDEX(Calculations!M$16:M$65,$F64,1),NA()) ->  | P64: =IF($F64=myRawDataPosition,INDEX(Calculations!N$16:N$65,$F64,1),NA()) -> 
B65: 50 | C65: =OFFSET(Data!E54,0,$D$6) -> 3535 | D65: 3535.00005 | E65: 3535.00005 | F65: 50 | G65: =INDEX(Data!B$5:B$54,$F65,1) -> Mt. Blackburn | H65: =INDEX(Data!C$5:C$54,$F65,1) -> US | I65: =INDEX(Data!F$5:F$54,$F65,1) -> 4996 | J65: =INDEX(Data!G$5:G$54,$F65,1) -> 3535 | K65: =INDEX(Data!H$5:H$54,$F65,1) -> Bruce Gilbert, Dick Wahlstrom, Hans Gmoser, Adolf Bitterlich, Leon Blumer | L65: =INDEX(Data!I$5:I$54,$F65,1) -> 1958 | M65: 57.3 | N65: -141.5 | O65: =IF($F65=myRawDataPosition,INDEX(Calculations!M$16:M$65,$F65,1),NA()) ->  | P65: =IF($F65=myRawDataPosition,INDEX(Calculations!N$16:N$65,$F65,1),NA()) -> 
B67: Dashboard Snapshot
E69: No. | F69: Position | G69: Summit Name | H69: Country | I69: Elevation in m | J69: Prominence in m | K69: First Ascent by | L69: Year | M69: Highlight Elevation | N69: Highlight Prominence | O69: Max Elevation | P69: Max Prominence
E70: =OFFSET(B15,$D$8,0) -> 27 | F70: =OFFSET(F15,$D$8,0) -> 27 | G70: =OFFSET(G15,$D$8,0) -> Yu Shan | H70: Taiwan | I70: =OFFSET(I15,$D$8,0) -> 3952 | J70: 3952 | K70: K. Stopel | L70: 1898 | M70: =IF($F70=myRawDataPosition,I70,NA()) ->  | N70: =IF($F70=myRawDataPosition,J70,NA()) ->  | O70: =MAX(I16:I65) -> 8848 | P70: =MAX(J16:J65) -> 8848
E71: 28 | F71: 28 | G71: Ngaliema (Mt. Stanley) | H71: Congo/Uganda | I71: 5109 | J71: 3951 | K71: Duke of the Abruzzi et al. | L71: 1906
E72: 29 | F72: 29 | G72: Kangchenjunga | H72: India/Nepal | I72: 8586 | J72: 3922 | K72: George Band, Joe Brown | L72: 1955
E73: 30 | F73: 30 | G73: Tirich Mir | H73: Pakistan | I73: 7708 | J73: 3910 | K73: Arne Næss, P. Kvernberg, H. Berg, Tony Streather | L73: 1950
E74: 31 | F74: 31 | G74: Mt. Cameroon | H74: Cameroon | I74: 4040 | J74: 3901 | K74: Richard Francis Burton, Gustav Mann | L74: 1861 | M74: 4040 | N74: 3901
E75: 32 | F75: 32 | G75: Mt. Kenya | H75: Kenya | I75: 5199 | J75: 3825 | K75: Halford Mackinder, Cesar Ollier, Joseph Brocherel | L75: 1899
E76: 33 | F76: 33 | G76: Gunung Kerinci | H76: Indonesia | I76: 3805 | J76: 3805 | K76: Hasselt, Veth | L76: 1877
E77: 34 | F77: 34 | G77: Mt. Erebus | H77: Antarctica | I77: 3794 | J77: 3794 | K77: Tannatt David,Douglas Mawson | L77: 1908
E78: 35 | F78: 35 | G78: Fuji San | H78: Japan | I78: 3776 | J78: 3776 | K78: Unknown monk | L78: 663
E79: 36 | F79: 37 | G79: Jebel Toubkal | H79: Morocco | I79: 4167 | J79: 3755 | K79: Marquis de Segonzac, V. Berger, H. Dolbeau | L79: 1923
B82: Camera Tooltip
F85: Hovered Summit | G85: 39
F87: Summit: | G87: =INDEX(Data!$B$5:$B$54,$G$85,1)&" ("&INDEX(Data!$C$5:$C$54,myHoveredSummit,1)&")" -> Gunung Rinjani (Indonesia)
F88: Elevation: | G88: =INDEX(Data!$F$5:$F$54,$G$85,1)&" m" -> 3726 m
F89: Prominence: | G89: =INDEX(Data!$G$5:$G$54,$G$85,1)&" m" -> 3726 m
F90: First ascent by: | G90: =INDEX(Data!$H$5:$H$54,$G$85,1) -> -
F91: Year: | G91: =INDEX(Data!$I$5:$I$54,$G$85,1) -> -
